bitfinex/quotes_BTCUSD_20250418
["timestamp","ask_amount","ask_price","bid_price","bid_amount"]
[1744992561812,0.0008414,84331.0,84330.0,2.20625716]
[1744992561995,0.0008414,84331.0,84330.0,2.33905716]
[1744992571682,0.0008414,84331.0,84330.0,2.34005716]
[1744992591274,0.0008414,84331.0,84330.0,2.33905716]
[1744992594692,0.0008414,84331.0,84330.0,2.20625716]
[1744992595043,0.0008414,84331.0,84330.0,2.33905716]
[1744992612021,0.0008414,84331.0,84330.0,2.33901716]
[1744992625209,0.0008414,84331.0,84330.0,2.01009143]
[1744992631671,0.0008414,84331.0,84330.0,2.01109143]
[1744992633276,0.0008414,84331.0,84330.0,2.02563228]
[1744992633481,0.000842,84341.0,84340.0,0.25167625]
[1744992633702,0.000842,84341.0,84340.0,1.17012416]
[1744992633907,0.000842,84341.0,84340.0,1.12252416]
[1744992647276,0.000842,84341.0,84340.0,1.25520416]
[1744992647864,0.000842,84341.0,84340.0,1.24066331]
[1744992648062,0.000842,84341.0,84340.0,1.10798331]
[1744992648272,0.000842,84341.0,84340.0,1.24066331]
[1744992651582,0.000842,84341.0,84340.0,1.24166331]
[1744992651992,0.00912299,84341.0,84340.0,1.24166331]
[1744992652216,0.000842,84341.0,84340.0,1.24166331]
[1744992652562,0.00912299,84341.0,84340.0,1.24166331]
[1744992661610,0.24625558,84341.0,84340.0,0.54408]
[1744992662072,0.34265558,84341.0,84340.0,0.54408]
[1744992663340,0.34265558,84341.0,84340.0,0.4114]
[1744992663514,0.23716071,84331.0,84330.0,1.10832]
[1744992663691,0.33306071,84331.0,84330.0,1.241]
[1744992663936,0.34123504,84331.0,84330.0,1.241]
[1744992664703,0.34123504,84331.0,84330.0,1.10832]
[1744992665378,0.34105568,84331.0,84330.0,1.10832]
[1744992666269,0.23716914,84328.0,84327.0,0.13272]
[1744992666487,0.24530592,84328.0,84327.0,0.13272]
[1744992669074,0.00813678,84328.0,84327.0,0.13272]
[1744992669274,0.24530592,84328.0,84327.0,0.13272]
[1744992672240,0.24530592,84328.0,84327.0,0.14464837]
[1744992678763,0.00813678,84328.0,84327.0,0.38282033]
[1744992678914,0.01185817,84330.0,84327.0,0.38282033]
[1744992679121,0.00805217,84329.0,84327.0,0.38282033]
[1744992679796,0.24521976,84329.0,84327.0,0.38282033]
[1744992680850,0.00805217,84329.0,84328.0,0.23716914]
[1744992683053,0.00805217,84329.0,84328.0,0.35661705]
[1744992683453,0.24901283,84333.0,84329.0,0.23716521]
[1744992683699,0.23715815,84332.0,84329.0,0.36847143]
[1744992684279,0.049642,84341.0,84329.0,0.36847143]
[1744992684280,0.05845691,84339.0,84332.0,0.01185789]
[1744992684457,0.23714521,84337.0,84335.0,0.01185747]
[1744992685545,0.24899573,84339.0,84334.0,0.23715035]
[1744992685546,0.24899573,84339.0,84336.0,0.24900398]
[1744992686036,0.23714772,84336.0,84332.0,0.01185789]
[1744992686378,0.23714772,84336.0,84333.0,0.24900762]
[1744992686577,0.24900307,84337.0,84333.0,0.24900762]
[1744992687732,0.23714802,84336.0,84333.0,0.24900762]
[1744992688031,0.23715171,84335.0,84332.0,0.24901364]
[1744992688232,0.23715171,84335.0,84333.0,0.23715396]
[1744992688583,0.24900535,84336.0,84333.0,0.23715396]
[1744992688777,0.00806801,84335.0,84333.0,0.23715396]
[1744992689442,0.24521982,84335.0,84332.0,0.24901364]
[1744992689705,0.25707729,84335.0,84332.0,0.24901364]
[1744992690491,0.00806801,84335.0,84333.0,0.23715279]
[1744992691060,0.00806801,84335.0,84334.0,0.23715227]
[1744992691444,0.00806801,84335.0,84333.0,0.23715279]
[1744992692485,0.00806801,84335.0,84332.0,0.2490108]
[1744992693662,0.00806801,84335.0,84334.0,0.23715227]
[1744992694061,0.24900325,84337.0,84334.0,0.23715227]
[1744992694563,0.00811135,84336.0,84334.0,0.23715227]
[1744992695229,0.24525891,84336.0,84333.0,0.24901062]
[1744992698112,0.23715769,84333.0,84330.0,0.24902159]
[1744992698313,0.2490076,84335.0,84332.0,0.23715696]
[1744992698527,0.00811126,84332.0,84331.0,0.24901847]
[1744992698734,0.24900912,84336.0,84334.0,0.23715227]
[1744992701889,0.2371362,84340.0,84334.0,0.24900988]
[1744992702095,0.2371362,84340.0,84336.0,0.24900369]
[1744992702096,4.515e-05,84338.0,84336.0,0.24900369]
[1744992702298,4.515e-05,84338.0,84337.0,0.23714383]
[1744992702460,4.515e-05,84338.0,84336.0,0.24900369]
[1744992702806,0.23718704,84338.0,84336.0,0.24900369]
[1744992703199,4.515e-05,84338.0,84337.0,0.23714383]
[1744992703788,0.00814465,84338.0,84337.0,0.23714383]
[1744992705030,0.00814465,84338.0,84336.0,0.24900369]
[1744992705189,0.00814465,84338.0,84337.0,0.23714383]
[1744992705732,0.00805735,84338.0,84337.0,0.23714383]
[1744992706146,0.24899255,84340.0,84337.0,0.23714383]
[1744992706308,0.00809424,84338.0,84337.0,0.23714383]
[1744992706493,0.24899255,84340.0,84337.0,0.23714383]
[1744992706690,0.00809424,84338.0,84337.0,0.23714383]
[1744992706925,0.24899255,84340.0,84337.0,0.23714383]
[1744992707129,0.00809424,84338.0,84337.0,0.23714383]
[1744992707344,0.23714102,84338.0,84336.0,0.01185733]
[1744992707545,0.24523526,84338.0,84336.0,0.01185733]
[1744992708340,0.00809424,84338.0,84336.0,0.01185733]
[1744992708745,0.00809424,84338.0,84336.0,0.25000384]
[1744992709330,0.00809424,84338.0,84337.0,0.23714383]
[1744992709729,0.001842,84341.0,84339.0,0.23713583]
[1744992709939,0.001842,84341.0,84340.0,0.2371354]
[1744992711268,0.000842,84341.0,84340.0,0.2381354]
[1744992712281,0.23797459,84341.0,84340.0,0.001]
[1744992712511,0.000842,84341.0,84340.0,0.001]
[1744992712909,0.000842,84341.0,84340.0,0.2381354]
[1744992713494,0.00893624,84341.0,84340.0,0.2381354]
[1744992718976,0.000842,84341.0,84340.0,0.2381354]
[1744992720606,0.00895001,84341.0,84340.0,0.2381354]
[1744992720957,0.000842,84341.0,84340.0,0.2381354]
[1744992722017,0.00895001,84341.0,84340.0,0.2381354]
[1744992733906,0.00895001,84341.0,84340.0,0.001]
[1744992734329,0.00895001,84341.0,84340.0,0.2381354]
[1744992736361,0.00895001,84341.0,84340.0,0.001]
[1744992736564,0.2460826,84341.0,84340.0,0.001]
[1744992737495,0.00895001,84341.0,84340.0,0.001]
[1744992741946,0.00895001,84341.0,84340.0,0.2381354]
[1744992751551,0.2460826,84341.0,84340.0,0.001]
[1744992751756,0.2460826,84341.0,84340.0,0.002]
[1744992753012,0.2917826,84341.0,84340.0,0.002]
[1744992755581,0.45833051,84341.0,84340.0,0.002]
[1744992755944,0.4703343,84341.0,84340.0,0.002]
[1744992757139,0.47928542,84341.0,84340.0,0.002]
[1744992771324,0.23717758,84325.0,84324.0,0.01852635]
[1744992771600,0.23717758,84325.0,84324.0,0.0195715]
[1744992771759,0.2451597,84325.0,84324.0,0.0195715]
[1744992785138,0.2451597,84325.0,84324.0,0.0205715]
[1744992785139,0.00798212,84325.0,84324.0,0.0205715]
[1744992785344,0.2451597,84325.0,84324.0,0.0205715]
[1744992785551,0.23717758,84325.0,84324.0,0.0205715]
[1744992785962,0.23719123,84321.0,84318.0,0.24905206]
[1744992786152,0.23719123,84321.0,84319.0,0.11944791]
[1744992786351,0.0118593,84322.0,84319.0,0.35664197]
[1744992786552,0.00798437,84320.0,84319.0,0.35664197]
[1744992786758,0.23717741,84326.0,84322.0,0.24904486]
[1744992786956,0.24903714,84325.0,84322.0,0.24904486]
[1744992787179,0.23718142,84324.0,84322.0,0.0118593]
[1744992787854,0.24904516,84323.0,84320.0,0.24905123]
[1744992789139,0.24904516,84323.0,84320.0,0.29705123]
[1744992789894,0.23718114,84324.0,84321.0,0.2371882]
[1744992790099,0.23717824,84325.0,84322.0,0.3684907]
[1744992790284,0.24903711,84325.0,84322.0,0.3684907]
[1744992791106,0.23718097,84324.0,84322.0,0.13130721]
[1744992792034,0.23718097,84324.0,84322.0,0.11944791]
[1744992793633,0.23718321,84323.0,84322.0,0.11944791]
[1744992793841,0.24519269,84323.0,84322.0,0.25200791]
[1744992810630,0.24619269,84323.0,84322.0,0.25200791]
[1744992812289,0.24619269,84323.0,84322.0,0.13256]
[1744992812699,0.23719446,84319.0,84318.0,4.516e-05]
[1744992812851,0.24520305,84319.0,84318.0,0.13260516]
[1744992814793,0.24365805,84319.0,84318.0,0.13260516]
[1744992828943,0.00800859,84319.0,84318.0,0.13260516]
[1744992829135,0.24520305,84319.0,84318.0,0.13260516]
[1744992829347,0.23719446,84319.0,84318.0,0.13260516]
[1744992829549,0.24518974,84319.0,84318.0,0.13260516]
[1744992831328,0.24618974,84319.0,84318.0,0.13260516]
[1744992834495,0.00899528,84319.0,84318.0,0.36980243]
[1744992834909,0.00899528,84319.0,84318.0,0.13260516]
[1744992837825,0.24618974,84319.0,84318.0,0.13260516]
[1744992839307,0.24618974,84319.0,84318.0,0.36980243]
[1744992839308,0.00899528,84319.0,84318.0,0.36980243]
[1744992839479,0.00899528,84319.0,84318.0,0.13260516]
[1744992841759,0.24618974,84319.0,84318.0,0.13260516]
[1744992845585,0.00899528,84319.0,84318.0,0.36980243]
[1744992845699,0.00899528,84319.0,84318.0,0.48925034]
[1744992845898,0.001,84319.0,84318.0,0.82925034]
[1744992846101,0.001,84319.0,84318.0,1.25519119]
[1744992846310,0.001,84319.0,84318.0,1.30479119]
[1744992863421,0.001,84319.0,84318.0,1.3158479]
[1744992865264,0.000842,84341.0,84340.0,0.5771354]
[1744992865455,0.000842,84341.0,84340.0,0.82906331]
[1744992865656,0.001842,84341.0,84340.0,0.82906331]
[1744992866273,0.001842,84341.0,84340.0,0.84012002]
[1744992868540,0.001842,84341.0,84340.0,0.82906331]
[1744992870040,0.050442,84341.0,84340.0,0.82906331]
[1744992870260,0.050442,84341.0,84340.0,0.47248]
[1744992870473,0.05855386,84341.0,84340.0,0.47248]
[1744992870676,0.05855386,84341.0,84340.0,0.7096154]
[1744992876665,0.050442,84341.0,84340.0,0.7096154]
[1744992879404,0.05858629,84341.0,84340.0,0.7096154]
[1744992879611,0.050442,84341.0,84340.0,0.7096154]
[1744992879834,0.28757459,84341.0,84340.0,0.13248]
[1744992880271,0.33364383,84337.0,84336.0,0.4114]
[1744992880425,0.23715508,84333.0,84332.0,0.13248]
[1744992880643,0.33365508,84333.0,84332.0,0.13248]
[1744992880849,0.34178659,84333.0,84332.0,0.13248]
[1744992885492,0.28366976,84328.0,84325.0,1.33331962]
[1744992885689,0.28366976,84328.0,84326.0,0.13248]
[1744992886130,0.00813151,84327.0,84326.0,0.13248]
[1744992886519,0.24530347,84327.0,84326.0,0.13248]
[1744992887289,0.00813151,84327.0,84326.0,0.13248]
[1744992887630,0.24530347,84327.0,84326.0,0.13248]
[1744992888001,0.23717196,84327.0,84326.0,0.13248]
[1744992888510,0.24530347,84327.0,84326.0,0.13248]
[1744992889543,0.28427477,84326.0,84325.0,1.08428398]
[1744992890062,0.29240628,84326.0,84325.0,1.08428398]
[1744992891512,0.05523151,84326.0,84325.0,1.08428398]
[1744992891758,0.29240628,84326.0,84325.0,1.08428398]
[1744992893686,0.05523151,84326.0,84325.0,1.08428398]
[1744992894077,0.29240628,84326.0,84325.0,1.08428398]
[1744992894273,0.05523151,84326.0,84325.0,1.08428398]
[1744992895077,0.05523151,84326.0,84325.0,1.32146156]
[1744992895442,0.0471,84326.0,84325.0,1.32146156]
[1744992896329,0.0471,84326.0,84325.0,1.08428398]
[1744992896707,0.05518168,84326.0,84325.0,1.08428398]
[1744992897531,0.05518168,84326.0,84325.0,1.32146156]
[1744992900466,0.00808168,84326.0,84325.0,1.44090947]
[1744992900698,0.06015761,84334.0,84330.0,0.23716201]
[1744992901016,0.23715601,84333.0,84330.0,0.24902018]
[1744992901273,0.24901657,84332.0,84329.0,0.24902424]
[1744992901626,0.24901967,84331.0,84328.0,0.2371637]
[1744992901809,0.24901657,84332.0,84329.0,0.23716507]
[1744992902144,0.01185789,84332.0,84330.0,0.23716321]
[1744992902374,0.24901661,84332.0,84329.0,0.23716507]
[1744992902492,0.01185789,84332.0,84330.0,0.23716301]
[1744992903534,0.01185789,84332.0,84329.0,0.24902338]
[1744992903916,0.24901638,84332.0,84329.0,0.24902338]
[1744992905424,0.2371616,84331.0,84329.0,0.24902338]
[1744992905621,0.24901638,84332.0,84329.0,0.24902338]
[1744992906623,0.24901293,84333.0,84330.0,0.23716303]
[1744992906845,0.23715901,84332.0,84330.0,0.23716303]
[1744992907685,0.23715901,84332.0,84329.0,0.24902338]
[1744992908091,0.24901293,84333.0,84330.0,0.23716134]
[1744992908295,0.23715859,84332.0,84330.0,0.23716134]
[1744992909105,0.23716071,84331.0,84329.0,0.24902338]
[1744992910004,0.24901648,84332.0,84329.0,0.24902338]
[1744992910230,0.0483,84334.0,84329.0,0.01185831]
[1744992910462,0.2859404,84339.0,84335.0,0.23714946]
[1744992910609,0.28634838,84336.0,84333.0,0.24901283]
[1744992910809,0.29820571,84336.0,84333.0,0.24901283]
[1744992911658,0.23714997,84335.0,84333.0,0.24901283]
[1744992911862,0.29820571,84336.0,84333.0,0.24901283]
[1744992912246,0.23714947,84335.0,84333.0,0.24901283]
[1744992912734,0.24900694,84335.0,84332.0,0.13256]
[1744992913554,0.24900694,84335.0,84332.0,0.36971557]
[1744992913767,0.00809705,84334.0,84332.0,0.36971557]
[1744992916430,0.23715508,84333.0,84332.0,0.13256]
[1744992916835,0.00811252,84333.0,84332.0,0.13256]
[1744992918443,0.2452676,84333.0,84332.0,0.13256]
[1744992925235,0.25712535,84333.0,84330.0,0.50110892]
[1744992925444,0.25712535,84333.0,84331.0,0.11944791]
[1744992925642,0.00811252,84333.0,84332.0,0.23715789]
[1744992925870,0.24901104,84334.0,84331.0,0.35660809]
[1744992926066,0.00811586,84333.0,84331.0,0.35660809]
[1744992927394,0.24527117,84333.0,84331.0,0.35660809]
[1744992927757,0.24527117,84333.0,84331.0,0.35660816]
[1744992928461,0.24527117,84333.0,84331.0,0.11944791]
[1744992929069,0.23715789,84332.0,84331.0,0.11944791]
[1744992929480,0.24527375,84332.0,84331.0,0.11944791]
[1744992930266,0.00811586,84332.0,84331.0,0.11944791]
[1744992930909,0.00811586,84332.0,84331.0,0.35660862]
[1744992931380,0.01269828,84342.0,84339.0,0.23713732]
[1744992931550,0.2371354,84340.0,84339.0,0.11944791]
[1744992931775,0.000842,84341.0,84339.0,0.35658465]
[1744992932076,0.00814978,84340.0,84339.0,0.35658465]
[1744992935656,0.000842,84341.0,84340.0,0.2371354]
[1744992936063,0.0089914,84341.0,84340.0,0.2371354]
[1744992939315,0.0089914,84341.0,84340.0,0.24900632]
[1744992942050,0.000842,84341.0,84340.0,0.24900632]
[1744992943725,0.000842,84341.0,84340.0,0.38164632]
[1744992946157,0.000842,84341.0,84340.0,0.50109423]
[1744992948220,0.000842,84341.0,84340.0,0.84109423]
[1744992948772,0.000842,84341.0,84340.0,0.85663508]
[1744992953885,0.000842,84341.0,84340.0,1.26803508]
[1744992954874,0.000842,84341.0,84340.0,1.03089968]
[1744992955075,0.000842,84341.0,84340.0,1.26803508]
[1744992962302,0.000842,84341.0,84340.0,1.26787508]
[1744992970197,0.000842,84341.0,84340.0,1.25333423]
[1744992970510,0.000842,84341.0,84340.0,1.12085423]
[1744992970710,0.000842,84341.0,84340.0,1.25329423]
[1744992982580,0.000842,84341.0,84340.0,1.26783508]
[1744992996395,0.000842,84341.0,84340.0,1.25329423]
[1744993005637,0.000842,84341.0,84340.0,1.26783508]
[1744993011409,0.000842,84341.0,84340.0,1.26683508]
[1744993028877,0.000842,84341.0,84340.0,1.27791663]
[1744993030137,0.000842,84341.0,84340.0,1.26683508]
[1744993033560,0.000842,84341.0,84340.0,0.92683508]
[1744993038842,0.000842,84341.0,84340.0,1.26783508]
[1744993040218,0.0008416,84365.0,84353.0,0.5916397]
[1744993040423,0.0008416,84365.0,84353.0,0.71108761]
[1744993041203,1e-08,84354.0,84353.0,1.12248761]
[1744993041561,6.962e-05,84354.0,84353.0,1.12248761]
[1744993041931,6.962e-05,84354.0,84353.0,1.13149179]
[1744993045966,0.0008416,84365.0,84364.0,0.59160879]
[1744993046258,0.00129317,84365.0,84364.0,1.2548967]
[1744993049833,0.00129317,84365.0,84364.0,1.3006967]
[1744993050158,0.00129317,84365.0,84364.0,1.1224567]
[1744993050301,0.00129317,84365.0,84364.0,1.2548967]
[1744993054474,0.00129317,84365.0,84364.0,1.25163882]
[1744993062440,0.00129317,84365.0,84364.0,2.35955882]
[1744993072883,0.000842,84367.0,84364.0,2.36055882]
[1744993073098,0.0008418,84399.0,84364.0,2.36055882]
[1744993073099,0.0008418,84399.0,84388.0,0.35454085]
[1744993073303,0.01278,84436.0,84425.0,0.34]
[1744993073537,0.01278,84436.0,84425.0,0.48694085]
[1744993073979,0.00196497,84426.0,84425.0,0.48443872]
[1744993074393,0.00196497,84426.0,84425.0,0.34]
[1744993075104,0.00196497,84426.0,84425.0,0.45944791]
[1744993075345,0.00196497,84426.0,84424.0,0.23689758]
[1744993077573,0.00712366,84425.0,84424.0,0.57689758]
[1744993077773,0.00712366,84425.0,84424.0,0.3894594]
[1744993077971,0.00196497,84426.0,84424.0,0.3894594]
[1744993078373,0.00712366,84425.0,84424.0,0.3894594]
[1744993078701,0.00712366,84425.0,84423.0,0.34]
[1744993078922,0.00712366,84425.0,84423.0,0.45944791]
[1744993079300,0.00712366,84425.0,84423.0,0.34]
[1744993080114,0.00712366,84425.0,84423.0,0.57690079]
[1744993080317,0.0457,84420.0,84417.0,0.23691689]
[1744993080520,0.05754553,84420.0,84417.0,0.11944791]
[1744993080862,0.00712366,84419.0,84417.0,0.11944791]
[1744993081052,0.00712366,84419.0,84414.0,0.01184637]
[1744993081194,0.00712366,84419.0,84416.0,0.01184609]
[1744993081618,0.00812366,84419.0,84416.0,0.01184609]
[1744993081830,0.00812366,84419.0,84417.0,0.23691652]
[1744993083112,0.001,84419.0,84417.0,0.23691652]
[1744993083843,0.00712366,84418.0,84417.0,0.23691652]
[1744993084044,0.001,84419.0,84417.0,0.23691652]
[1744993084263,0.00712366,84418.0,84417.0,0.23691652]
[1744993084470,0.001,84419.0,84417.0,0.23691652]
[1744993084814,0.00712366,84418.0,84417.0,0.23691652]
[1744993084991,0.001,84419.0,84417.0,0.23691652]
[1744993089001,0.001,84419.0,84418.0,0.23691629]
[1744993094726,0.23692723,84415.0,84390.0,1.10788]
[1744993094931,0.23693675,84411.0,84400.0,0.01184834]
[1744993095143,0.24878862,84409.0,84405.0,0.34]
[1744993095348,0.24878597,84410.0,84407.0,0.34]
[1744993095567,0.00737188,84408.0,84407.0,0.57694693]
[1744993095767,0.24878712,84410.0,84407.0,0.34]
[1744993095974,0.05377188,84408.0,84376.0,0.0462]
[1744993096206,0.01184763,84405.0,84402.0,0.23695974]
[1744993096338,0.01184763,84405.0,84402.0,0.2488078]
[1744993096538,0.00734234,84404.0,84402.0,0.2488078]
[1744993096749,0.01919011,84404.0,84398.0,0.01184862]
[1744993096948,0.01919011,84404.0,84398.0,0.24882043]
[1744993097234,0.23696127,84402.0,84399.0,0.23696909]
[1744993097791,0.23697524,84397.0,84395.0,0.34]
[1744993098188,0.01184862,84398.0,84390.0,0.01166951]
[1744993098189,0.2369899,84392.0,84390.0,0.01166951]
[1744993098388,0.30295807,84396.0,84392.0,0.01184946]
[1744993098587,0.01184932,84393.0,84386.0,0.4232503]
[1744993098820,0.01184932,84393.0,84390.0,0.23699453]
[1744993099019,0.01184932,84393.0,84390.0,0.24884427]
[1744993099240,0.01197242,84393.0,84390.0,0.24884427]
[1744993099420,0.24895957,84393.0,84390.0,0.01184974]
[1744993099769,0.24895957,84393.0,84390.0,0.24884321]
[1744993100763,0.23698946,84392.0,84390.0,0.26049257]
[1744993101106,0.24895957,84393.0,84390.0,0.01164936]
[1744993101296,0.24895957,84393.0,84389.0,0.24884539]
[1744993101687,0.24895957,84393.0,84390.0,0.23699429]
[1744993102565,0.0571496,84391.0,84389.0,0.23699771]
[1744993103500,0.0453,84391.0,84390.0,0.2369949]
[1744993104572,0.0453,84391.0,84389.0,0.23699771]
[1744993105639,0.2369949,84390.0,84388.0,0.01185002]
[1744993105808,0.2369949,84390.0,84378.0,0.57702613]
[1744993105809,0.23700894,84385.0,84382.0,0.34]
[1744993106014,0.24888003,84378.0,84374.0,0.01185199]
[1744993106237,0.01185129,84379.0,84376.0,0.01185171]
[1744993106437,0.24887118,84381.0,84377.0,0.11944791]
[1744993106645,0.24887118,84381.0,84377.0,0.36833043]
[1744993106855,0.01185114,84380.0,84377.0,0.36833043]
[1744993107239,0.2370258,84379.0,84377.0,0.11944791]
[1744993107479,0.2370286,84378.0,84377.0,0.45944791]
[1744993107663,0.2370258,84379.0,84377.0,0.45944791]
[1744993107835,0.24887415,84380.0,84377.0,0.69647831]
[1744993108035,0.24887415,84380.0,84377.0,0.45944791]
[1744993108274,0.23702696,84379.0,84377.0,0.45944791]
[1744993108706,0.00720826,84378.0,84377.0,0.45944791]
[1744993108817,0.00720826,84378.0,84377.0,0.69647932]
[1744993109020,0.00720826,84378.0,84377.0,0.45944791]
[1744993109429,0.00720826,84378.0,84377.0,0.69647932]
[1744993109638,0.01185114,84380.0,84377.0,0.69647932]
[1744993109639,0.2370285,84379.0,84377.0,0.45944791]
[1744993109840,0.24423686,84378.0,84377.0,0.45944791]
[1744993111555,0.24423686,84378.0,84377.0,0.34]
[1744993114489,0.29313686,84378.0,84377.0,0.34]
[1744993114692,0.01185199,84374.0,84371.0,0.01185241]
[1744993114865,0.01185213,84373.0,84371.0,0.34]
[1744993115044,0.00714445,84373.0,84371.0,0.57704827]
[1744993115550,0.00714445,84373.0,84372.0,0.57704546]
[1744993116152,0.23703767,84375.0,84373.0,0.34]
[1744993116153,0.01185199,84374.0,84373.0,0.34]
[1744993116869,0.23703767,84375.0,84373.0,0.34]
[1744993117705,0.23703984,84374.0,84372.0,0.34]
[1744993117918,0.23704065,84374.0,84372.0,0.34]
[1744993118058,0.23704065,84374.0,84371.0,0.24889905]
[1744993118264,0.2959863,84376.0,84372.0,0.24889523]
[1744993119793,0.2370371,84375.0,84372.0,0.24889523]
[1744993121457,0.0471,84376.0,84374.0,0.23703984]
[1744993122971,0.28413466,84376.0,84373.0,0.01185213]
[1744993123472,0.0471,84376.0,84374.0,0.23703804]
[1744993123878,0.0071364,84375.0,84374.0,0.23703804]
[1744993124951,0.0489,84378.0,84376.0,0.23703161]
[1744993125577,0.28592944,84378.0,84375.0,0.24888346]
[1744993129298,0.0489,84378.0,84376.0,0.23703262]
[1744993130090,0.0489,84378.0,84377.0,0.23703141]
[1744993130294,0.2859286,84378.0,84375.0,0.24888346]
[1744993132559,0.0489,84378.0,84376.0,0.23703258]
[1744993133333,0.28592926,84378.0,84376.0,0.23703258]
[1744993135545,0.0489,84378.0,84376.0,0.23703258]
[1744993135728,0.28592971,84378.0,84375.0,0.24888346]
[1744993135932,0.28592971,84378.0,84375.0,0.01185185]
[1744993136354,0.28592971,84378.0,84376.0,0.23703368]
[1744993136469,0.0489,84378.0,84376.0,0.23703368]
[1744993137278,0.28592864,84378.0,84376.0,0.23703368]
[1744993138775,0.0071364,84377.0,84375.0,0.24888685]
[1744993143559,0.0071364,84377.0,84376.0,0.23703422]
[1744993144447,0.0071364,84377.0,84375.0,0.24888685]
[1744993146151,0.0071364,84377.0,84376.0,0.23703422]
[1744993151685,0.0071364,84377.0,84375.0,0.24888858]
[1744993152070,0.0071364,84377.0,84376.0,0.23703422]
[1744993156327,0.0071364,84377.0,84375.0,0.24888858]
[1744993156531,0.0071364,84377.0,84375.0,0.01185185]
[1744993156730,0.0071364,84377.0,84375.0,0.24888766]
[1744993156928,0.0071364,84377.0,84376.0,0.23703422]
[1744993164190,0.0071364,84377.0,84375.0,0.24888878]
[1744993164401,0.0071364,84377.0,84374.0,0.23703931]
[1744993164599,0.2441687,84377.0,84374.0,0.23703931]
[1744993165274,0.01898797,84377.0,84375.0,0.23703651]
[1744993165530,0.0071364,84377.0,84375.0,0.23703651]
[1744993169503,0.0071364,84377.0,84374.0,0.24889177]
[1744993169504,0.23703422,84376.0,84374.0,0.01185199]
[1744993169707,0.25602016,84377.0,84374.0,0.24889062]
[1744993169911,0.00712089,84375.0,84374.0,0.24889062]
[1744993170122,0.24888376,84377.0,84374.0,0.24889062]
[1744993170322,0.00712089,84375.0,84374.0,0.24889062]
[1744993170500,0.24888376,84377.0,84374.0,0.24889062]
[1744993170683,0.00854507,84375.0,84374.0,0.24889062]
[1744993170879,0.24888328,84377.0,84374.0,0.24888949]
[1744993171087,0.00854896,84375.0,84374.0,0.24888949]
[1744993171287,0.24888328,84377.0,84374.0,0.24888949]
[1744993171490,0.00854896,84375.0,84374.0,0.01185199]
[1744993171698,0.23706232,84366.0,84365.0,0.0008414]
[1744993172063,0.29695239,84366.0,84365.0,0.0008414]
[1744993176711,0.05989007,84366.0,84365.0,0.0008414]
[1744993176898,0.24775239,84366.0,84365.0,0.0008414]
[1744993180015,0.24775239,84366.0,84365.0,0.0008014]
[1744993186417,0.01069007,84366.0,84365.0,0.23786653]
[1744993186840,0.01185241,84371.0,84366.0,0.01185311]
[1744993186841,0.01185255,84370.0,84366.0,0.01185311]
[1744993186997,0.01185269,84369.0,84366.0,0.01185311]
[1744993187204,0.23706157,84367.0,84365.0,0.0008014]
[1744993187583,0.2370588,84368.0,84365.0,0.01265465]
[1744993187856,0.01185283,84368.0,84365.0,0.0008014]
[1744993187998,0.23706232,84366.0,84365.0,0.0008014]
[1744993188415,0.01185283,84368.0,84365.0,0.0008014]
[1744993188620,0.23705992,84367.0,84365.0,0.0008014]
[1744993188882,0.23706232,84366.0,84365.0,0.0008014]
[1744993189239,0.23705992,84367.0,84365.0,0.0008014]
[1744993190141,0.23710504,84367.0,84365.0,0.0008014]
[1744993193664,0.23706232,84366.0,84365.0,0.0008014]
[1744993197714,4.512e-05,84367.0,84366.0,0.23706232]
[1744993197918,0.23710557,84367.0,84365.0,0.0008014]
[1744993198116,4.512e-05,84367.0,84365.0,0.0008014]
[1744993198333,0.23710669,84367.0,84365.0,0.0008014]
[1744993198698,4.512e-05,84367.0,84365.0,0.0008014]
[1744993198897,0.00850434,84366.0,84365.0,0.23786472]
[1744993199176,0.00850434,84366.0,84365.0,0.0008014]
[1744993199722,0.24556666,84366.0,84365.0,0.0008014]
[1744993203689,0.00850434,84366.0,84365.0,0.0008014]
[1744993205072,0.00850434,84366.0,84365.0,0.23786653]
[1744993214119,0.00850434,84366.0,84365.0,0.0008014]
[1744993215017,0.24556666,84366.0,84365.0,0.0008014]
[1744993219452,0.00850434,84366.0,84365.0,0.23786653]
[1744993220814,0.00850434,84366.0,84365.0,0.0008014]
[1744993221037,0.34316666,84366.0,84365.0,0.0008014]
[1744993238053,0.00850434,84366.0,84365.0,0.69731444]
[1744993238260,4.512e-05,84367.0,84366.0,0.23706232]
[1744993238515,4.512e-05,84367.0,84366.0,0.71342138]
[1744993238767,4.512e-05,84367.0,84366.0,0.71105108]
[1744993239664,4.512e-05,84367.0,84366.0,0.84361108]
[1744993241268,4.512e-05,84367.0,84366.0,1.25501108]
[1744993242023,4.512e-05,84367.0,84366.0,1.08620909]
[1744993247069,0.23699541,84390.0,84366.0,1.08620909]
[1744993247070,0.0492,84392.0,84389.0,0.01184988]
[1744993247280,0.095,84392.0,84391.0,0.23699209]
[1744993249138,0.0492,84392.0,84391.0,0.23699209]
[1744993249542,0.0492,84392.0,84391.0,0.24888344]
[1744993250240,0.00046613,84400.0,84399.0,0.57696963]
[1744993250437,0.00046613,84400.0,84399.0,0.69641754]
[1744993255179,0.00046613,84400.0,84398.0,0.13252]
[1744993255180,0.28516963,84399.0,84398.0,0.13252]
[1744993255381,0.28516963,84399.0,84391.0,0.42329135]
[1744993255382,0.01184904,84395.0,84391.0,0.42329135]
[1744993255578,0.01184904,84395.0,84392.0,0.13252]
[1744993255579,0.23698608,84394.0,84392.0,0.13252]
[1744993255767,0.01184904,84395.0,84392.0,0.13252]
[1744993255768,0.01184904,84395.0,84392.0,0.14436946]
[1744993255963,0.01038991,84393.0,84392.0,0.24883781]
[1744993256165,0.0452,84405.0,84393.0,0.13252]
[1744993256448,0.23697488,84398.0,84394.0,0.11944791]
[1744993256646,0.23697488,84398.0,84395.0,0.23697524]
[1744993256843,0.23697568,84397.0,84395.0,0.36827219]
[1744993257238,0.2488235,84398.0,84395.0,0.36827219]
[1744993257523,0.23697683,84397.0,84395.0,0.13129695]
[1744993258268,0.23697805,84396.0,84395.0,0.11944791]
[1744993258870,0.24736796,84396.0,84395.0,0.11944791]
[1744993260137,0.01038991,84396.0,84395.0,0.11944791]
[1744993260675,0.24736796,84396.0,84395.0,0.11944791]
[1744993260827,0.24736796,84396.0,84395.0,0.25192791]
[1744993263624,0.01038991,84396.0,84395.0,0.25192791]
[1744993265441,0.24736796,84396.0,84395.0,0.25192791]
[1744993266766,0.01038991,84396.0,84395.0,0.48890877]
[1744993267193,0.01184862,84398.0,84395.0,0.50075781]
[1744993267395,0.23697805,84396.0,84395.0,0.25192791]
[1744993267927,0.23697805,84396.0,84395.0,0.82890877]
[1744993267928,0.01040437,84396.0,84395.0,0.82890877]
[1744993268313,0.00046613,84400.0,84399.0,0.57696963]
[1744993268553,0.00046613,84400.0,84399.0,0.69641754]
[1744993271566,0.00046613,84400.0,84399.0,0.69741754]